fUSD/lending_fUSD_20250206
["ID","MTS","AMOUNT","RATE_DAILY","PERIOD"]
[351884772,1738828317856,-522.29,0.00020217,3]
[351884773,1738828317871,-522.29,0.00020217,3]
[351884774,1738828317885,-151.0,0.00020217,2]
[351884775,1738828317899,-1498.7,0.00020217,3]
[351884776,1738828317913,-911.06,0.00020217,3]
[351884777,1738828317928,-914.83,0.00020217,3]
[351884778,1738828317943,-911.06,0.00020217,3]
[351884779,1738828317958,-911.06,0.00020217,3]
[351884780,1738828317972,-911.06,0.00020217,3]
[351884781,1738828317986,-151.0,0.00020217,2]
[351884782,1738828318001,-911.08,0.00020217,3]
[351884783,1738828318015,-1283.32,0.00020217,3]
[351884784,1738828318029,-500.0,0.00020217,3]
[351884785,1738828318043,-828.85,0.00020217,3]
[351884786,1738828318058,-828.85,0.00020217,3]
[351884787,1738828318075,-828.85,0.00020217,3]
[351884788,1738828318090,-828.85,0.00020217,3]
[351884789,1738828318103,-828.91350725,0.00020217,3]
[351884790,1738828318119,-681.41,0.00020217,3]
[351884791,1738828318133,-681.41,0.00020217,3]
[351884792,1738828318148,-557.43,0.00020217,3]
[351884793,1738828318163,-1176.09,0.00020217,3]
[351884794,1738828318178,-500.0,0.00020217,3]
[351884795,1738828318192,-1176.09,0.00020217,3]
[351884796,1738828318206,-500.0,0.00020217,3]
[351884797,1738828318220,-1098.98,0.00020217,3]
[351884798,1738828318235,-500.0,0.00020217,3]
[351884799,1738828318251,-465.67696438,0.00020217,3]
[351884800,1738828318266,-810.13,0.00020217,3]
[351884801,1738828318280,-791.26,0.00020217,3]
[351884802,1738828318295,-1368.78,0.00020217,3]
[351884803,1738828318310,-1142.71,0.00020217,3]
[351884804,1738828318325,-1142.71,0.00020217,3]
[351884805,1738828318339,-1142.71,0.00020217,3]
[351884806,1738828318353,-1142.71,0.00020217,3]
[351884807,1738828318367,-1142.87354422,0.00020217,3]
[351884808,1738828318382,-500.0,0.00020217,3]
[351884809,1738828318397,-500.0,0.00020217,3]
[351884810,1738828318411,-500.0,0.00020217,3]
[351884811,1738828318425,-624.05,0.00020217,3]
[351884812,1738828318440,-563.62,0.00020217,3]
[351884813,1738828318456,-624.05,0.00020217,3]
[351884814,1738828318471,-500.0,0.00020217,3]
[351884815,1738828318485,-388.16638705,0.00020217,3]
[351884816,1738828318499,-1231.34,0.00020217,3]
[351884817,1738828318514,-788.88,0.00020217,2]
[351884818,1738828318528,-1231.34,0.00020217,3]
[351884819,1738828318543,-500.0,0.00020217,3]
[351884820,1738828318557,-1231.34,0.00020217,3]
[351884821,1738828318571,-1231.34,0.00020217,3]
[351884822,1738828318586,-1231.52403371,0.00020217,3]
[351884823,1738828318599,-300.0,0.00020218,2]
[351884824,1738828318614,-666.0,0.00020218,2]
[351884825,1738828318629,-669.68307831,0.00020218,2]
[351884826,1738828318645,-504.84150787,0.00020218,3]
[351884827,1738828318660,-500.0,0.00020218,3]
[351884828,1738828318891,-500.0,0.00020218,3]
[351884829,1738828318902,-500.0,0.00020218,3]
[351884830,1738828318911,-500.0,0.00020218,3]
[351884831,1738828318921,-500.0,0.00020218,3]
[351884832,1738828318931,-500.0,0.00020218,3]
[351884833,1738828318940,-500.0,0.00020218,3]
[351884834,1738828318950,-502.49212297,0.00020218,3]
[351884835,1738828318960,-500.0,0.00020218,3]
[351884836,1738828318969,-500.0,0.00020218,3]
[351884837,1738828318978,-500.0,0.00020218,3]
[351884838,1738828318988,-500.0,0.00020218,3]
[351884839,1738828318998,-500.0,0.00020218,3]
[351884840,1738828319008,-500.0,0.00020218,3]
[351884841,1738828319017,-500.0,0.00020218,3]
[351884842,1738828319027,-500.0,0.00020218,3]
[351884843,1738828319036,-500.0,0.00020218,3]
[351884844,1738828319046,-500.0,0.00020218,3]
[351884845,1738828319057,-1224.9,0.00020218,3]
[351884846,1738828319073,-1224.9,0.00020218,3]
[351884847,1738828319083,-1224.9,0.00020218,3]
[351884848,1738828319094,-1224.9,0.00020218,3]
[351884849,1738828319105,-1224.94326766,0.00020218,3]
[351884850,1738828319115,-500.0,0.00020218,3]
[351884851,1738828319126,-500.0,0.00020218,3]
[351884852,1738828319136,-500.0,0.00020218,3]
[351884853,1738828319146,-366.94778067,0.00020218,3]
[351884854,1738828319156,-518.04,0.00020218,3]
[351884855,1738828319167,-518.04,0.00020218,3]
[351884856,1738828319176,-518.04,0.00020218,3]
[351884857,1738828319187,-518.04,0.00020218,3]
[351884858,1738828319197,-518.09489234,0.00020218,3]
[351884859,1738828319208,-514.35,0.00020218,3]
[351884860,1738828319218,-514.35,0.00020218,3]
[351884861,1738828319229,-514.35,0.00020218,3]
[351884862,1738828319239,-514.35,0.00020218,3]
[351884863,1738828319250,-514.45,0.00020218,3]
[351884864,1738828319260,-478.56668529,0.00020218,3]
[351884865,1738828319270,-500.0,0.00020218,3]
[351884866,1738828319280,-500.0,0.00020218,3]
[351884867,1738828319289,-500.0,0.00020218,3]
[351884868,1738828319299,-779.86,0.00020218,3]
[351884869,1738828319309,-684.11,0.00020218,3]
[351884870,1738828319318,-580.24,0.00020218,3]
[351884871,1738828319328,-500.0,0.00020218,3]
[351884872,1738828319338,-500.0,0.00020218,3]
[351884873,1738828319347,-522.88,0.00020218,3]
[351884874,1738828319356,-500.0,0.00020218,3]
[351884875,1738828319366,-500.0,0.00020218,3]
[351884876,1738828319375,-500.0,0.00020218,3]
[351884877,1738828319385,-500.0,0.00020218,3]
[351884878,1738828319395,-541.3,0.00020218,3]
[351884879,1738828319404,-582.0,0.00020218,3]
[351884880,1738828319414,-625.41,0.00020218,3]
[351884881,1738828319425,-625.41,0.00020218,3]
[351884882,1738828319435,-625.41,0.00020218,3]
[351884883,1738828319444,-625.41,0.00020218,3]
[351884884,1738828319455,-625.57,0.00020218,3]
[351884885,1738828319465,-500.0,0.00020218,3]
[351884886,1738828319475,-500.0,0.00020218,3]
[351884887,1738828319485,-329.9,0.00020218,3]
[351884888,1738828319496,-500.0,0.00020218,3]
[351884889,1738828319506,-592.65,0.00020218,3]
[351884890,1738828319515,-643.53,0.00020218,3]
[351884891,1738828319525,-683.42,0.00020218,3]
[351884892,1738828319534,-500.0,0.00020218,3]
[351884893,1738828319544,-500.0,0.00020218,3]
[351884894,1738828319554,-552.47644267,0.00020218,3]
[351884895,1738828319564,-743.5,0.00020218,3]
[351884896,1738828319576,-1126.73,0.00020218,3]
[351884897,1738828319586,-1126.73,0.00020218,3]
[351884898,1738828319595,-1126.73,0.00020218,3]
[351884899,1738828319605,-1126.73,0.00020218,3]
[351884900,1738828319615,-1126.87,0.00020218,3]
[351884901,1738828319625,-911.42,0.00020218,3]
[351884902,1738828319635,-500.0,0.00020218,3]
[351884903,1738828319644,-500.0,0.00020218,3]
[351884904,1738828319654,-675.43,0.00020218,3]
[351884905,1738828319665,-878.64,0.00020218,3]
[351884906,1738828319675,-876.77,0.00020218,3]
[351884907,1738828319689,-700.57,0.00020218,3]
[351884908,1738828319699,-1237.91,0.00020218,3]
[351884909,1738828319709,-1237.91,0.00020218,3]
[351884910,1738828319719,-1237.91,0.00020218,3]
[351884911,1738828319730,-1237.91,0.00020218,3]
[351884912,1738828319740,-1238.05971118,0.00020218,3]
[351884913,1738828319750,-972.63,0.00020218,3]
[351884914,1738828319760,-972.63,0.00020218,3]
[351884915,1738828319770,-972.63,0.00020218,3]
[351884916,1738828319780,-972.63,0.00020218,3]
[351884917,1738828319791,-972.84,0.00020218,3]
[351884918,1738828319801,-593.78,0.00020218,3]
[351884919,1738828319811,-500.0,0.00020218,3]
[351884920,1738828319820,-324.97,0.00020218,3]
[351884921,1738828319830,-576.4,0.00020218,3]
[351884922,1738828319840,-157.345131,0.00020218,3]
[351884923,1738828319850,-1197.53,0.00020218,3]
[351884924,1738828319860,-1197.53,0.00020218,3]
[351884925,1738828319870,-1197.53,0.00020218,3]
[351884926,1738828319879,-1197.53,0.00020218,3]
[351884927,1738828319890,-1197.6054427,0.00020218,3]
[351884928,1738828319900,-952.02,0.00020218,3]
[351884929,1738828319910,-1382.3,0.00020218,3]
[351884930,1738828319920,-579.01,0.00020218,3]
[351884931,1738828319930,-579.01,0.00020218,3]
[351884932,1738828319940,-579.01,0.00020218,3]
[351884933,1738828319950,-579.01,0.00020218,3]
[351884934,1738828319960,-579.07209801,0.00020218,3]
[351884935,1738828319970,-153.775169,0.00020218,3]
[351884936,1738828319980,-153.775169,0.00020218,3]
[351884937,1738828319990,-699.15,0.00020218,3]
[351884938,1738828320000,-899.16,0.00020218,3]
[351884939,1738828320009,-1461.4,0.00020218,3]
[351884940,1738828320020,-874.42,0.00020218,3]
[351884941,1738828320030,-874.42,0.00020218,3]
[351884942,1738828320040,-874.42,0.00020218,3]
[351884943,1738828320049,-874.42,0.00020218,3]
[351884944,1738828320059,-874.61169412,0.00020218,3]
[351884945,1738828320073,-1018.23,0.00020218,3]
[351884946,1738828320083,-1018.23,0.00020218,3]
[351884947,1738828320093,-1018.23,0.00020218,3]
[351884948,1738828320104,-1359.27,0.00020218,3]
[351884949,1738828320115,-1018.23,0.00020218,3]
[351884950,1738828320126,-1018.44,0.00020218,3]
[351884951,1738828320136,-802.51,0.00020218,3]
[351884952,1738828320148,-802.51,0.00020218,3]
[351884953,1738828320159,-802.51,0.00020218,3]
[351884954,1738828320169,-500.0,0.00020218,3]
[351884955,1738828320179,-802.51,0.00020218,3]
[351884956,1738828320190,-802.62482316,0.00020218,3]
[351884957,1738828320199,-951.4,0.00020218,3]
[351884958,1738828320210,-540.01,0.00020218,3]
[351884959,1738828320219,-951.4,0.00020218,3]
[351884960,1738828320230,-951.4,0.00020218,3]
[351884961,1738828320240,-951.4,0.00020218,3]
[351884962,1738828320251,-951.52455783,0.00020218,3]
[351884963,1738828320262,-1887.44,0.00020218,3]
[351884964,1738828320272,-812.31,0.00020218,3]
[351884965,1738828320283,-1035.82,0.00020218,3]
[351884966,1738828320293,-745.24,0.00020218,3]
[351884967,1738828320303,-745.24,0.00020218,3]
[351884968,1738828320314,-3020.92,0.00020218,3]
[351884969,1738828320324,-745.24,0.00020218,3]
[351884970,1738828320334,-3020.92,0.00020218,3]
[351884971,1738828320345,-745.24,0.00020218,3]
[351884972,1738828320355,-3020.92,0.00020218,3]
[351884973,1738828320366,-745.26687109,0.00020218,3]
[351884974,1738828320376,-3020.92,0.00020218,3]
[351884975,1738828320386,-3021.09134784,0.00020218,3]
[351884976,1738828320396,-500.0,0.00020218,3]
[351884977,1738828320405,-1530.95,0.00020218,3]
[351884978,1738828320416,-1000.82,0.00020218,3]
[351884979,1738828320426,-1373.06,0.00020218,3]
[351884980,1738828320436,-1000.82,0.00020218,3]
[351884981,1738828320446,-1000.82,0.00020218,3]
[351884982,1738828320458,-1373.06,0.00020218,3]
[351884983,1738828320469,-1000.82,0.00020218,3]
[351884984,1738828320480,-1373.06,0.00020218,3]
[351884985,1738828320491,-1001.03563266,0.00020218,3]
[351884986,1738828320501,-1373.06,0.00020218,3]
[351884987,1738828320512,-1373.22249249,0.00020218,3]
[351884988,1738828320523,-1389.37,0.00020218,3]
[351884989,1738828320533,-1389.37,0.00020218,3]
[351884990,1738828320543,-1389.37,0.00020218,3]
[351884991,1738828320554,-1389.37,0.00020218,3]
[351884992,1738828320563,-1389.43239996,0.00020218,3]
[351884993,1738828320574,-1609.52,0.00020218,3]
[351884994,1738828320585,-1609.52,0.00020218,3]
[351884995,1738828320595,-1609.52,0.00020218,3]
[351884996,1738828320606,-958.23,0.00020218,3]
[351884997,1738828320615,-1609.52,0.00020218,3]
[351884998,1738828320625,-1609.75,0.00020218,3]
[351884999,1738828320635,-755.58,0.00020218,3]
[351885000,1738828320645,-4082.68,0.00020218,3]
[351885001,1738828320654,-4082.68,0.00020218,3]
[351885002,1738828320664,-4082.68,0.00020218,3]
[351885003,1738828320674,-4082.68,0.00020218,3]
[351885004,1738828320684,-4082.77469679,0.00020218,3]
[351885005,1738828320694,-1468.72,0.00020218,3]
[351885006,1738828320705,-1468.72,0.00020218,3]
[351885007,1738828320715,-1468.72,0.00020218,3]
[351885008,1738828320725,-1468.72,0.00020218,3]
[351885009,1738828320736,-1468.92,0.00020218,3]
[351885010,1738828320747,-1231.08,0.00020218,3]
[351885011,1738828320756,-3098.34,0.00020218,3]
[351885012,1738828320766,-590.49,0.00020218,3]
[351885013,1738828320776,-3098.34,0.00020218,3]
[351885014,1738828320786,-590.49,0.00020218,3]
[351885015,1738828320795,-3098.34,0.00020218,3]
[351885016,1738828320805,-590.49,0.00020218,3]
[351885017,1738828320815,-3098.34,0.00020218,3]
[351885018,1738828320824,-590.49,0.00020218,3]
[351885019,1738828320833,-590.54608558,0.00020218,3]
[351885020,1738828320843,-3098.48992498,0.00020218,3]
[351885021,1738828320852,-1407.85,0.00020218,3]
[351885022,1738828320861,-562.09,0.00020218,3]
[351885023,1738828320872,-1510.77,0.00020218,3]
[351885024,1738828320882,-1510.77,0.00020218,3]
[351885025,1738828320892,-1510.77,0.00020218,3]
[351885026,1738828320901,-1510.77,0.00020218,3]
[351885027,1738828320910,-1510.97399547,0.00020218,3]
[351885028,1738828320920,-500.0,0.00020218,3]
[351885029,1738828320930,-1184.3,0.00020218,3]
[351885030,1738828320941,-1242.78,0.00020218,3]
[351885031,1738828320951,-1242.78,0.00020218,3]
[351885032,1738828320962,-1242.78,0.00020218,3]
[351885033,1738828321105,-1242.78,0.00020218,3]
[351885034,1738828321116,-1242.9,0.00020218,3]
[351885035,1738828321127,-813.79,0.00020218,3]
[351885036,1738828321136,-813.79,0.00020218,3]
[351885037,1738828321148,-813.79,0.00020218,3]
[351885038,1738828321158,-813.79,0.00020218,3]
[351885039,1738828321168,-813.83,0.00020218,3]
[351885040,1738828321177,-1634.32,0.00020218,3]
[351885041,1738828321187,-1319.57,0.00020218,3]
[351885042,1738828321196,-1319.57,0.00020218,3]
[351885043,1738828321206,-1319.57,0.00020218,3]
[351885044,1738828321215,-1319.57,0.00020218,3]
[351885045,1738828321225,-1319.75567092,0.00020218,3]
[351885046,1738828321235,-500.0,0.00020218,3]
[351885047,1738828321245,-207.15,0.00020218,3]
[351885048,1738828321254,-1638.97,0.00020218,3]
[351885049,1738828321265,-1097.62,0.00020218,3]
[351885050,1738828321275,-1097.62,0.00020218,3]
[351885051,1738828321285,-1097.62,0.00020218,3]
[351885052,1738828321295,-1097.62,0.00020218,3]
[351885053,1738828321305,-1097.74,0.00020218,3]
[351885054,1738828321315,-866.19,0.00020218,3]
[351885055,1738828321325,-500.0,0.00020218,3]
[351885056,1738828321334,-1026.8,0.00020218,3]
[351885057,1738828321343,-1498.7,0.00020218,3]
[351885058,1738828321354,-914.83,0.00020218,3]
[351885059,1738828321363,-1283.32,0.00020218,3]
[351885060,1738828321372,-1283.32,0.00020218,3]
[351885061,1738828321382,-1283.32,0.00020218,3]
[351885062,1738828321392,-1283.32,0.00020218,3]
[351885063,1738828321402,-1283.42,0.00020218,3]
[351885064,1738828321411,-500.0,0.00020218,3]
[351885065,1738828321421,-1098.98,0.00020218,3]
[351885066,1738828321430,-810.13,0.00020218,3]
[351885067,1738828321440,-810.13,0.00020218,3]
[351885068,1738828321450,-810.13,0.00020218,3]
[351885069,1738828321460,-810.13,0.00020218,3]
[351885070,1738828321470,-810.25680259,0.00020218,3]
[351885071,1738828321480,-791.26,0.00020218,3]
[351885072,1738828321490,-1368.78,0.00020218,3]
[351885073,1738828321499,-531.95,0.00020219,3]
[351885074,1738828321510,-542.48,0.00020219,3]
[351885075,1738828321519,-500.0,0.00020219,3]
[351885076,1738828321529,-513.51,0.00020219,3]
[351885077,1738828321539,-542.6,0.00020219,3]
[351885078,1738828321550,-527.83,0.00020219,3]
[351885079,1738828321560,-500.0,0.00020219,3]
[351885080,1738828321569,-566.87,0.00020219,3]
[351885081,1738828321579,-500.0,0.00020219,3]
[351885082,1738828321588,-685.75,0.00020219,3]
[351885083,1738828321598,-500.0,0.00020219,3]
[351885084,1738828321608,-683.6,0.00020219,3]
[351885085,1738828321618,-500.0,0.00020219,3]
[351885086,1738828321628,-500.0,0.00020219,3]
[351885087,1738828321638,-679.33,0.00020219,3]
[351885088,1738828321648,-500.0,0.00020219,3]
[351885089,1738828321659,-540.0,0.00020219,3]
[351885090,1738828321669,-1448.12,0.00020219,3]
[351885091,1738828321679,-1159.34,0.00020219,3]
[351885092,1738828321688,-500.0,0.00020219,3]
[351885093,1738828321698,-500.0,0.00020219,3]
[351885094,1738828321709,-500.0,0.00020219,3]
[351885095,1738828321719,-500.0,0.00020219,3]
[351885096,1738828321729,-635.21,0.00020219,3]
[351885097,1738828321739,-518.44,0.00020219,3]
[351885098,1738828321748,-509.57,0.00020219,3]
[351885099,1738828321759,-614.61,0.00020219,3]
[351885100,1738828321769,-500.0,0.00020219,3]
[351885101,1738828321779,-657.45,0.00020219,3]
[351885102,1738828321789,-463.94,0.00020219,3]
[351885103,1738828321800,-884.8,0.00020219,3]
[351885104,1738828321809,-500.0,0.00020219,3]
[351885105,1738828321819,-597.73,0.00020219,3]
[351885106,1738828321829,-663.47,0.00020219,3]
[351885107,1738828321839,-303.59990663,0.00020219,2]
[351885108,1738828321849,-592.07,0.00020219,3]
[351885109,1738828321858,-666.0,0.00020219,2]
[351885110,1738828321868,-529.1,0.00020219,3]
[351885111,1738828321878,-500.0,0.00020219,3]
[351885112,1738828321888,-765.56,0.00020219,3]
[351885113,1738828321898,-719.46,0.00020219,3]
[351885114,1738828321908,-673.85,0.00020219,3]
[351885115,1738828321918,-500.0,0.00020219,3]
[351885116,1738828321929,-500.0,0.00020219,3]
[351885117,1738828321939,-500.0,0.00020219,3]
[351885118,1738828321949,-500.0,0.00020219,3]
[351885119,1738828321962,-2987.0,0.00020219,24]
[351885120,1738828321972,-591.95,0.00020219,3]
[351885121,1738828321983,-611.25712914,0.00020219,3]
[351885122,1738828321994,-500.0,0.00020219,3]
[351885123,1738828322004,-541.88,0.00020219,3]
[351885124,1738828322014,-573.58792142,0.00020219,3]
[351885125,1738828322024,-632.34,0.00020219,3]
[351885126,1738828322034,-970.24,0.00020219,3]
[351885127,1738828322044,-910.08,0.00020219,3]
[351885128,1738828322054,-553.77,0.00020219,3]
[351885129,1738828322065,-535.37,0.00020219,3]
[351885130,1738828322075,-500.0,0.00020219,3]
[351885131,1738828322085,-568.95,0.00020219,3]
[351885132,1738828322095,-500.0,0.00020219,3]
[351885133,1738828322105,-880.85,0.00020219,3]
[351885134,1738828322116,-639.2424824,0.00020219,3]
[351885135,1738828322126,-500.0,0.00020219,3]
[351885136,1738828322136,-915.45,0.00020219,3]
[351885137,1738828322147,-500.0,0.00020219,3]
[351885138,1738828322158,-585.29,0.00020219,3]
[351885139,1738828322168,-882.26,0.00020219,3]
[351885140,1738828322178,-1211.98,0.00020219,3]
[351885141,1738828322187,-994.07,0.00020219,3]
[351885142,1738828322197,-966.96,0.00020219,3]
[351885143,1738828322210,-500.0,0.00020219,3]
[351885144,1738828322220,-529.22,0.00020219,3]
[351885145,1738828322229,-1133.41,0.00020219,3]
[351885146,1738828322239,-823.75,0.00020219,3]
[351885147,1738828322248,-197.0204,0.00020219,2]
[351885148,1738828322258,-197.0204,0.00020219,2]
[351885149,1738828322268,-945.66,0.00020219,3]
[351885150,1738828322278,-575.52,0.00020219,3]
[351885151,1738828322287,-163.71,0.00020219,3]
[351885152,1738828322296,-500.0,0.00020219,3]
[351885153,1738828322306,-4091.65,0.00020219,3]
[351885154,1738828322315,-1452.35,0.00020219,3]
[351885155,1738828322325,-500.0,0.00020219,3]
[351885156,1738828322334,-500.0,0.00020219,3]
[351885157,1738828322343,-1071.43,0.00020219,3]
[351885158,1738828322353,-500.0,0.00020219,3]
[351885159,1738828322362,-600.33,0.00020219,3]
[351885160,1738828322372,-1670.31,0.00020219,3]
[351885161,1738828322381,-500.0,0.00020219,3]
[351885162,1738828322390,-535.23,0.00020219,3]
[351885163,1738828322399,-594.41,0.00020219,3]
[351885164,1738828322409,-500.0,0.00020219,3]
[351885165,1738828322419,-436.4,0.00020219,3]
[351885166,1738828322428,-512.51,0.00020219,3]
[351885167,1738828322438,-1500.26,0.00020219,3]
[351885168,1738828322447,-1097.03,0.00020219,3]
[351885169,1738828322458,-543.38,0.00020219,3]
[351885170,1738828322468,-524.92,0.00020219,3]
[351885171,1738828322478,-1244.13,0.00020219,3]
[351885172,1738828322487,-522.29,0.00020219,3]
[351885173,1738828322497,-681.41,0.00020219,3]
[351885174,1738828322507,-557.43,0.00020219,3]
[351885175,1738828322517,-1176.09,0.00020219,3]
[351885176,1738828322526,-500.0,0.00020219,3]
[351885177,1738828322536,-500.0,0.00020219,3]
[351885178,1738828322546,-500.0,0.00020219,3]
[351885179,1738828322555,-563.62,0.00020219,3]
[351885180,1738828322565,-624.05,0.00020219,3]
[351885181,1738828322575,-788.88,0.00020219,2]
[351885182,1738828322585,-284.75351064,0.00020219,4]
[351885183,1738828322597,-18530.0,0.00020219,2]
[351885184,1738828322607,-31365.0,0.00020219,2]
[351885185,1738828322617,-150.0,0.0002022,2]
[351885186,1738828322627,-150.0,0.0002022,2]
[351885187,1738828322636,-150.0,0.0002022,2]
[351885188,1738828322646,-150.0,0.0002022,2]
[351885189,1738828322657,-8516.68743871,0.0002022,2]
[351885190,1738828322667,-558.67191228,0.0002022,2]
[351885191,1738828322677,-101642.35516901,0.0002022,2]
[351885192,1738828322688,-4127.76204992,0.0002022,2]
[351885193,1738828322698,-150.0,0.0002022,2]
[351885194,1738828322714,-6036.29891692,0.0002022,2]
[351885195,1738828322725,-150.0,0.0002022,3]
[351885196,1738828322739,-150.0,0.0002022,3]
[351885197,1738828322749,-500.0,0.0002022,3]
[351885198,1738828322760,-150.0,0.0002022,3]
[351885199,1738828322770,-150.0,0.0002022,2]
[351885200,1738828322780,-150.0,0.0002022,2]
[351885201,1738828322791,-500.0,0.0002022,3]
[351885202,1738828322802,-150.0,0.0002022,2]
[351885203,1738828322814,-3721.0,0.0002022,3]
[351885204,1738828322824,-150.0,0.00020224,2]
[351885205,1738828322835,-899.16,0.00020226,3]
[351885206,1738828322845,-500.0,0.00020226,3]
[351885207,1738828322855,-1035.82,0.00020226,3]
[351885208,1738828322865,-531.95,0.00020229,3]
[351885209,1738828322875,-513.51,0.00020229,3]
[351885210,1738828322885,-500.0,0.00020229,3]
[351885211,1738828322895,-683.6,0.00020229,3]
[351885212,1738828322905,-500.0,0.00020229,3]
[351885213,1738828322916,-500.0,0.00020229,3]
[351885214,1738828322926,-413.53653979,0.00020229,3]
[351885215,1738828322936,-779.86,0.00020229,3]
[351885216,1738828322945,-679.33,0.00020229,3]
[351885217,1738828322958,-684.11,0.00020229,3]
[351885218,1738828322968,-1448.12,0.00020229,3]
[351885219,1738828322977,-580.24,0.00020229,3]
[351885220,1738828322987,-1159.34,0.00020229,3]
[351885221,1738828322997,-500.0,0.00020229,3]
[351885222,1738828323007,-500.0,0.00020229,3]
[351885223,1738828323017,-500.0,0.00020229,3]
[351885224,1738828323027,-500.0,0.00020229,3]
[351885225,1738828323037,-500.0,0.00020229,3]
[351885226,1738828323048,-635.21,0.00020229,3]
[351885227,1738828323059,-518.44,0.00020229,3]
[351885228,1738828323071,-522.88,0.00020229,3]
[351885229,1738828323082,-509.57,0.00020229,3]
[351885230,1738828323092,-614.61,0.00020229,3]
[351885231,1738828323103,-432.4,0.00020229,3]
[351885232,1738828323114,-500.0,0.00020229,3]
[351885233,1738828323124,-582.0,0.00020229,3]
[351885234,1738828323134,-884.8,0.00020229,3]
[351885235,1738828323145,-500.0,0.00020229,3]
[351885236,1738828323156,-597.73,0.00020229,3]
[351885237,1738828323166,-663.47,0.00020229,3]
[351885238,1738828323177,-592.07,0.00020229,3]
[351885239,1738828323187,-666.0,0.00020229,2]
[351885240,1738828323197,-500.0,0.00020229,3]
[351885241,1738828323212,-529.1,0.00020229,3]
[351885242,1738828323222,-500.0,0.00020229,3]
[351885243,1738828323233,-765.56,0.00020229,3]
[351885244,1738828323244,-592.65,0.00020229,3]
[351885245,1738828323255,-719.46,0.00020229,3]
[351885246,1738828323265,-673.85,0.00020229,3]
[351885247,1738828323276,-500.0,0.00020229,3]
[351885248,1738828323286,-643.53,0.00020229,3]
[351885249,1738828323297,-500.0,0.00020229,3]
[351885250,1738828323307,-683.42,0.00020229,3]
[351885251,1738828323318,-500.0,0.00020229,3]
[351885252,1738828323328,-743.5,0.00020229,3]
[351885253,1738828323337,-327.5,0.00020229,3]
[351885254,1738828323348,-500.0,0.00020229,3]
[351885255,1738828323358,-591.95,0.00020229,3]
[351885256,1738828323368,-911.42,0.00020229,3]
[351885257,1738828323378,-500.0,0.00020229,3]
[351885258,1738828323387,-541.88,0.00020229,3]
[351885259,1738828323397,-500.0,0.00020229,3]
[351885260,1738828323408,-500.0,0.00020229,3]
[351885261,1738828323418,-632.34,0.00020229,3]
[351885262,1738828323429,-970.24,0.00020229,3]
[351885263,1738828323439,-910.08,0.00020229,3]
[351885264,1738828323450,-675.43,0.00020229,3]
[351885265,1738828323466,-878.64,0.00020229,3]
[351885266,1738828323477,-553.77,0.00020229,3]
[351885267,1738828323487,-535.37,0.00020229,3]
[351885268,1738828323497,-500.0,0.00020229,3]
[351885269,1738828323507,-568.95,0.00020229,3]
[351885270,1738828323518,-876.77,0.00020229,3]
[351885271,1738828323529,-500.0,0.00020229,3]